bitfinex/quotes_ETHUSD_20250131
["timestamp","ask_amount","ask_price","bid_price","bid_amount"]
[1738307110250,3.06805,3259.4,3259.0,0.5575]
[1738307110443,3.06823,3259.3,3259.0,0.5575]
[1738307111506,3.06826,3259.2,3258.9,0.7682]
[1738307111869,3.06833,3259.1,3258.8,1.64325157]
[1738307112162,3.06842,3259.0,3258.8,1.64325157]
[1738307112313,3.06852,3258.9,3258.8,1.64325157]
[1738307113130,3.762485,3258.9,3258.8,1.64325157]
[1738307114738,3.762485,3258.9,3258.3,0.5575]
[1738307114971,3.06871,3258.7,3258.3,0.5575]
[1738307117501,3.06871,3258.7,3258.3,0.0075]
[1738307117996,3.06887,3258.6,3258.2,0.7891]
[1738307118169,3.06887,3258.6,3258.0,0.8032]
[1738307118692,3.06887,3258.6,3258.1,0.0075]
[1738307118895,3.06891,3258.5,3258.1,0.0075]
[1738307122099,3.06891,3258.5,3258.1,0.2909887]
[1738307123718,3.06916,3258.3,3258.0,1.0866887]
[1738307123894,3.06927,3258.1,3258.0,0.2834887]
[1738307124220,3.85507,3258.1,3258.0,0.2834887]
[1738307124822,3.06977,3257.6,3257.4,0.2834887]
[1738307125176,3.06957,3257.8,3257.4,0.2834887]
[1738307125776,3.06957,3257.8,3257.3,0.2834887]
[1738307126562,3.06965,3257.7,3257.3,0.2834887]
[1738307127328,0.03837431,3257.6,3257.3,0.2834887]
[1738307127491,3.06965,3257.7,3257.2,1.0363887]
[1738307127833,3.06956,3257.8,3257.2,4.1064887]
[1738307127994,3.06956,3257.8,3257.2,1.0363887]
[1738307128183,3.06965,3257.7,3257.2,0.2834887]
[1738307128526,3.10819432,3257.6,3257.2,0.2834887]
[1738307128733,3.88129432,3257.6,3257.2,0.2834887]
[1738307129207,3.88129432,3257.6,3257.1,0.5575]
[1738307130428,3.06996,3257.4,3257.1,0.2834887]
[1738307131281,6.13922,3257.8,3257.1,3.9036387]
[1738307131485,3.06968,3257.7,3257.1,7.03362712]
[1738307131732,3.06968,3257.7,3257.1,10.10377712]
[1738307131931,0.7875,3258.2,3257.6,0.5575]
[1738307132134,0.7875,3258.5,3257.8,3.07705]
[1738307132285,3.06886,3258.6,3257.9,3.06943]
[1738307132686,3.85617,3258.8,3258.2,0.7667]
[1738307132999,3.06855,3258.9,3258.3,3.62653]
[1738307133198,3.06861,3258.8,3258.3,0.5575]
[1738307134020,3.10708006,3258.7,3258.3,0.5575]
[1738307136710,0.61756901,3258.7,3258.2,0.7667]
[1738307136909,3.06888,3258.6,3258.2,0.7667]
[1738307137141,3.0689,3258.5,3258.2,0.7667]
[1738307137921,3.06888,3258.6,3258.2,0.7667]
[1738307138121,3.06902,3258.4,3258.0,0.8236]
[1738307139073,3.83062,3259.0,3258.2,0.0075]
[1738307139074,3.06865,3258.8,3258.2,0.0075]
[1738307139426,3.06886,3258.6,3258.2,0.0075]
[1738307139627,0.03836156,3258.5,3258.0,0.8161]
[1738307139827,3.06924,3258.2,3257.9,0.28368936]
[1738307141066,0.03836746,3258.1,3257.9,0.28368936]
[1738307141373,3.82241,3258.4,3257.9,0.28368936]
[1738307141539,3.06911,3258.3,3257.9,0.28368936]
[1738307141737,3.06911,3258.3,3257.8,0.28368936]
[1738307142771,3.06892,3258.5,3258.0,0.55]
[1738307142943,3.06889,3258.5,3257.9,0.812]
[1738307143136,3.06904,3258.4,3257.9,0.812]
[1738307143338,3.10740511,3258.4,3257.9,0.812]
[1738307143539,3.06889,3258.5,3257.9,3.88144]
[1738307144871,3.06889,3258.5,3258.0,0.28368936]
[1738307145170,3.0691,3258.3,3258.0,0.28368936]
[1738307145323,3.06889,3258.5,3258.0,0.28368936]
[1738307145527,3.06899,3258.4,3258.0,0.28368936]
[1738307146433,3.06899,3258.4,3257.9,1.09568936]
[1738307147275,3.06889,3258.5,3257.9,4.16508936]
[1738307147479,3.0687,3258.7,3258.0,1.28095594]
[1738307147666,3.0688,3258.6,3258.1,3.06921]
[1738307147981,3.0688,3258.6,3258.0,0.5575]
[1738307148335,3.0688,3258.6,3258.0,3.62686]
[1738307149082,3.0688,3258.6,3258.1,0.28368936]
[1738307149231,3.0687,3258.7,3258.1,3.35293936]
[1738307149436,3.06882,3258.6,3258.1,3.35293936]
[1738307150032,3.0688,3258.6,3258.1,3.35293936]
[1738307150559,3.0688,3258.6,3258.2,0.28368936]
[1738307150762,3.0687,3258.7,3258.2,0.28368936]
[1738307151087,3.0687,3258.7,3258.3,0.8136]
[1738307151749,3.06852,3258.9,3258.3,0.8136]
[1738307152173,3.06876,3258.7,3258.3,0.8136]
[1738307152686,3.06852,3258.9,3258.3,0.8136]
[1738307152834,3.06865,3258.8,3258.3,0.8136]
[1738307153598,3.06872,3258.7,3258.3,1.09728936]
[1738307153781,3.06865,3258.8,3258.3,1.09728936]
[1738307154898,3.06865,3258.8,3258.4,0.28368936]
[1738307155789,3.06865,3258.8,3258.3,1.09728936]
[1738307158559,3.06865,3258.8,3258.4,0.28368936]
[1738307160302,3.06865,3258.8,3258.5,0.28368936]
[1738307160609,3.06827,3259.2,3258.7,0.7618]
[1738307160961,3.06807,3259.4,3258.8,3.62605]
[1738307161604,3.06786,3259.6,3259.1,0.7656]
[1738307162355,3.06802,3259.5,3259.1,0.7656]
[1738307162771,3.06802,3259.5,3259.2,0.28425691]
[1738307164062,3.06802,3259.5,3259.1,0.7656]
[1738307164392,3.06786,3259.6,3259.1,0.7656]
[1738307164813,3.06769,3259.8,3259.2,3.62564]
[1738307165176,3.06795,3259.5,3259.1,0.7656]
[1738307165404,3.10646146,3259.4,3259.1,0.7656]
[1738307165618,3.10646146,3259.4,3259.3,0.28425691]
[1738307165976,3.06811,3259.4,3259.3,0.28425691]
[1738307166332,0.62727071,3260.0,3259.5,0.7594]
[1738307166475,3.06758,3259.9,3259.5,0.7594]
[1738307166673,3.06758,3259.9,3259.6,0.0075]
[1738307166975,3.06742,3260.1,3259.6,0.0075]
[1738307168280,0.62389531,3260.2,3259.6,3.62527]
[1738307168526,3.69119531,3260.2,3259.6,4.425526]
[1738307168828,3.0673,3260.2,3259.6,4.425526]
[1738307169530,3.06743,3260.1,3259.6,1.357756]
[1738307170481,3.10564459,3260.2,3259.6,0.807756]
[1738307170677,3.0673,3260.2,3259.6,3.875596]
[1738307170882,3.06713,3260.4,3259.9,0.8058]
[1738307171782,3.06731,3260.2,3259.9,0.8058]
[1738307171927,3.06741,3260.1,3259.9,0.8058]
[1738307173004,0.0383425,3260.3,3259.9,0.8058]
[1738307173204,3.06729,3260.2,3259.9,0.8058]
[1738307175554,3.06713,3260.4,3259.9,0.97984138]
[1738307176444,3.06722,3260.3,3259.9,0.97984138]
[1738307178144,3.06722,3260.3,3259.9,0.8058]
[1738307179136,3.06705,3260.5,3259.9,0.8058]
[1738307179382,3.06717,3260.4,3259.9,0.8058]
[1738307179564,3.06681,3260.8,3260.2,3.06729]
[1738307179748,0.2496,3260.9,3260.4,0.0075]
[1738307179947,0.2496,3260.9,3260.6,3.07439]
[1738307180363,0.2496,3260.9,3260.8,0.0075]
[1738307181685,3.31632,3260.9,3260.7,0.8208]
[1738307182053,0.02908014,3260.8,3260.7,0.8208]
[1738307182266,3.31632,3260.9,3260.7,0.8208]
[1738307182463,0.02975171,3260.8,3260.7,0.8208]
[1738307182665,3.31632,3260.9,3260.7,0.8208]
[1738307182862,0.02975171,3260.8,3260.7,0.8208]
[1738307183368,3.31632,3260.9,3260.7,0.8208]
[1738307183680,0.029798,3260.8,3260.7,0.8208]
[1738307183979,3.31632,3260.9,3260.7,0.8208]
[1738307184732,0.02975171,3260.8,3260.7,0.8208]
[1738307185082,3.31632,3260.9,3260.7,0.8208]
[1738307186083,0.2496,3260.9,3260.7,0.8208]
[1738307186390,0.2496,3260.9,3260.8,0.0075]
[1738307187612,0.2496,3260.9,3260.7,0.8208]
[1738307188167,3.31625,3260.9,3260.7,0.8208]
[1738307188373,3.31625,3260.9,3260.5,0.015]
[1738307190072,3.06687,3260.7,3260.5,0.0075]
[1738307190270,3.06701,3260.5,3259.8,0.7565]
[1738307190474,0.7757,3260.6,3259.8,0.7565]
[1738307190715,3.06675,3260.8,3260.3,0.0075]
[1738307190892,3.06675,3260.8,3260.3,0.565]
[1738307192177,3.06675,3260.8,3260.4,0.015]
[1738307193521,3.31623,3260.9,3260.4,0.015]
[1738307193824,0.02970075,3260.8,3260.4,0.015]
[1738307194318,0.02970075,3260.8,3260.4,0.459316]
[1738307194541,0.02970075,3260.8,3260.6,0.0075]
[1738307195110,0.02970075,3260.8,3260.5,0.0075]
[1738307195445,0.02970075,3260.8,3260.5,0.015]
[1738307195646,3.06692,3260.6,3260.4,1.64325157]
[1738307195857,3.06701,3260.5,3260.4,1.64325157]
[1738307196249,3.09675708,3260.5,3260.4,1.64325157]
[1738307197170,0.02974708,3260.5,3260.4,1.64325157]
[1738307197373,0.02974708,3260.5,3260.4,1.89052673]
[1738307197573,3.31632,3260.9,3260.5,0.0075]
[1738307197728,0.2496,3260.9,3260.5,0.0075]
[1738307198074,3.09647708,3260.8,3260.4,1.64325157]
[1738307198281,3.06701,3260.5,3260.4,1.64325157]
[1738307198639,3.09675708,3260.5,3260.4,1.64325157]
[1738307200952,0.02974708,3260.5,3260.2,0.7545]
[1738307201365,3.06697,3260.6,3260.2,0.7545]
[1738307201671,3.06701,3260.5,3260.2,0.7545]
[1738307202101,0.02972856,3260.4,3260.2,0.7545]
[1738307202877,3.06701,3260.5,3260.2,0.7545]
[1738307203100,0.02972856,3260.3,3260.2,0.762]
[1738307203598,3.06701,3260.5,3260.2,0.762]
[1738307203799,0.02972856,3260.3,3260.2,0.762]
[1738307204003,3.06701,3260.5,3260.2,0.762]
[1738307204493,3.06701,3260.5,3260.2,0.0075]
[1738307205184,0.02972856,3260.4,3260.2,0.0075]
[1738307205401,3.06701,3260.5,3260.2,0.0075]
[1738307205559,0.02972856,3260.4,3260.2,0.0075]
[1738307205773,3.06701,3260.5,3260.2,0.0075]
[1738307206416,0.02972856,3260.4,3260.2,0.0075]
[1738307208323,3.06682,3260.7,3260.2,0.0075]
[1738307208476,0.02966838,3260.3,3260.2,0.0075]
[1738307208677,3.06696,3260.6,3260.2,0.0075]
[1738307208880,0.02966838,3260.3,3260.2,0.0075]
[1738307209095,3.06696,3260.6,3260.2,0.0075]
[1738307209624,0.02966838,3260.5,3260.3,0.015]
[1738307209923,3.3163,3260.9,3260.4,0.7646]
[1738307210909,3.06675,3260.8,3260.4,0.7646]
[1738307211526,3.06687,3260.7,3260.4,0.7646]
[1738307211829,3.06675,3260.8,3260.4,0.7646]
[1738307212029,3.06675,3260.8,3260.5,0.3071]
[1738307212327,0.2496,3260.9,3260.6,0.0075]
[1738307212807,0.2496,3260.9,3260.5,0.015]
[1738307213426,3.06673,3260.8,3260.5,0.015]
[1738307214938,0.2496,3260.9,3260.5,0.25728516]
[1738307216193,0.02983039,3260.8,3260.5,0.25728516]
[1738307216395,0.02983039,3260.8,3260.5,35.25728516]
[1738307216625,0.2496,3260.9,3260.5,35.25728516]
[1738307216977,0.02983039,3260.7,3260.5,35.25728516]
[1738307217137,0.2496,3260.9,3260.6,3.12998842]
[1738307217439,0.02983039,3260.8,3260.5,38.32428516]
[1738307217610,0.2496,3260.9,3260.5,38.32428516]
[1738307217813,0.02983039,3260.8,3260.5,38.32428516]
[1738307218026,0.2496,3260.9,3260.5,38.32428516]
[1738307218231,0.02983039,3260.7,3260.5,38.32428516]
[1738307218399,0.2496,3260.9,3260.5,38.32428516]
[1738307218592,0.02983039,3260.8,3260.5,38.32428516]
[1738307218791,3.06651,3261.1,3260.6,2.88038842]
[1738307219007,3.09638039,3261.0,3260.5,3.082]
[1738307219639,3.06655,3261.0,3260.5,3.082]
[1738307219797,3.06638,3261.2,3260.5,3.082]
[1738307219998,3.09638297,3261.1,3260.5,3.082]
[1738307220654,3.06638,3261.2,3260.8,0.0075]
[1738307220850,1.43986667,3261.3,3260.8,0.015]
[1738307221014,1.43986667,3261.3,3260.9,0.8028]
[1738307221214,0.02992297,3261.2,3260.9,0.8028]
[1738307221415,1.47819728,3261.3,3260.9,0.8028]
[1738307221639,3.06635,3261.2,3260.9,0.8028]
[1738307221844,3.09627297,3261.2,3260.9,0.8028]
[1738307222653,0.02992297,3261.2,3260.8,0.015]
[1738307222957,5.32778199,3261.3,3260.8,0.015]
[1738307223156,0.03006182,3261.1,3260.8,0.015]
[1738307223460,0.03006182,3261.0,3260.8,0.015]
[1738307223632,5.32778199,3261.3,3260.8,0.015]
[1738307223958,0.03006182,3260.9,3260.8,0.015]
[1738307224157,4.54445728,3261.3,3260.8,0.015]
[1738307224481,5.3661046,3261.3,3260.8,0.015]
[1738307224668,0.03006182,3261.2,3260.8,0.015]
[1738307224836,5.32777399,3261.3,3260.8,0.015]
[1738307225019,0.03006182,3261.1,3260.8,0.015]
[1738307225220,5.32777399,3261.3,3260.8,0.015]
[1738307225419,0.03006182,3261.2,3260.8,0.015]
[1738307225622,5.32777399,3261.3,3260.8,0.015]
[1738307225820,0.03006182,3261.1,3260.8,0.015]
[1738307226043,4.50612667,3261.3,3260.8,0.015]
[1738307226222,0.03006182,3261.0,3260.8,0.015]
[1738307226423,3.06636,3261.2,3260.8,0.015]
[1738307226968,0.03006182,3261.1,3260.8,0.015]
[1738307238399,3.06661,3261.0,3260.8,0.0075]
[1738307238708,3.06682,3260.7,3260.6,1.64325157]
[1738307239074,3.09691887,3260.7,3260.6,1.64325157]
[1738307239257,0.03009887,3260.7,3260.6,1.64325157]
[1738307239463,0.306661,3260.9,3260.6,2.40775157]
[1738307239684,3.89647,3261.2,3260.7,0.0075]
[1738307240011,3.06648,3261.1,3260.7,0.0075]
[1738307240502,3.06661,3261.0,3260.7,0.0075]
[1738307240996,3.89647,3261.2,3260.7,0.0075]
[1738307241202,3.06629,3261.3,3260.7,3.08176]
[1738307242801,3.06629,3261.3,3260.9,0.015]
[1738307244501,3.06609,3261.5,3261.0,0.7568]
[1738307245302,3.68331186,3261.7,3261.1,0.015]
[1738307245485,3.68331186,3261.7,3261.1,3.08139]
[1738307245654,6.74928186,3261.7,3261.1,3.08139]
[1738307245852,3.06599,3261.6,3261.1,3.08139]
[1738307246297,3.06599,3261.6,3261.1,0.015]
[1738307246673,3.06607,3261.5,3261.1,0.015]
[1738307250716,0.783,3262.7,3261.8,0.015]
[1738307250918,3.06529,3262.4,3262.0,0.0075]
[1738307251116,3.06516,3262.5,3262.0,0.0075]
[1738307251286,0.02946977,3262.3,3262.0,0.0075]
[1738307251487,3.06516,3262.5,3262.0,0.0075]
[1738307251693,0.02946977,3262.2,3262.0,0.0075]
[1738307251996,3.06523,3262.4,3262.0,0.0075]
[1738307252182,0.02946977,3262.1,3262.0,0.0075]
[1738307252368,3.06523,3262.4,3262.0,0.0075]
[1738307252773,0.02946977,3262.3,3262.0,0.0075]
[1738307254412,0.02946977,3262.3,3262.0,1.65075157]
[1738307254646,0.02946977,3262.3,3262.1,0.0075]
[1738307254934,0.02946977,3262.3,3262.2,0.7969]
[1738307255280,3.06519,3262.5,3262.3,0.0075]
[1738307256775,3.06505,3262.6,3262.3,0.0075]
[1738307256982,3.06491,3262.8,3262.3,0.015]
[1738307257320,3.06469,3263.0,3262.5,0.015]
[1738307260237,3.06451,3263.2,3262.5,3.08005]
[1738307260416,3.06451,3263.2,3262.4,5.47564157]
[1738307260417,3.06451,3263.2,3262.7,0.015]
[1738307260619,0.66666667,3263.5,3263.3,0.0075]
[1738307260828,0.66666667,3263.5,3263.3,0.015]
[1738307261134,0.66666667,3263.5,3263.3,3.07938]
[1738307261347,0.66666667,3263.5,3263.4,0.385988]
[1738307261809,0.66666667,3263.5,3263.4,0.400988]
[1738307263110,0.66666667,3263.5,3263.4,4.218768]
[1738307263315,0.66666667,3263.5,3263.4,4.768768]
[1738307264035,0.69712696,3263.5,3263.4,4.768768]
[1738307264397,0.69712696,3263.5,3263.4,7.768768]
[1738307264600,3.06316,3264.6,3264.1,0.015]
[1738307264809,0.02989046,3264.5,3264.1,1.65825157]
[1738307265140,3.06299,3264.8,3264.1,4.72187157]
[1738307265308,3.06299,3264.8,3264.3,0.0075]
[1738307265509,0.02989046,3264.7,3264.5,0.0075]
[1738307265847,0.02989046,3264.7,3264.5,1.65825157]
[1738307266066,3.06267,3265.2,3264.7,0.0075]
[1738307266563,3.06267,3265.2,3264.7,0.015]
[1738307267167,3.06243,3265.4,3264.7,0.015]
[1738307267466,3.06243,3265.4,3265.0,0.015]
[1738307267967,3.06251,3265.3,3265.0,0.015]
[1738307268165,3.06231,3265.5,3265.0,0.015]
[1738307268352,3.06214,3265.7,3265.0,0.015]
[1738307268661,3.06223,3265.6,3265.0,1.65825157]
[1738307268826,3.06223,3265.6,3265.0,2.20893173]
[1738307269023,3.06232,3265.5,3265.0,1.65825157]
[1738307269470,3.0623,3265.6,3265.0,1.65825157]
[1738307269618,3.0621,3265.8,3265.2,0.015]
[1738307270024,0.7847,3266.0,3265.2,1.65825157]
[1738307270254,3.06174,3266.2,3265.6,0.0075]
[1738307270473,3.06174,3266.2,3265.6,1.65075157]
[1738307270767,3.06174,3266.2,3265.6,4.71295157]
[1738307270977,3.06174,3266.2,3265.6,1.65075157]
[1738307271267,3.06191,3266.0,3265.6,1.65075157]
[1738307271476,0.40409587,3266.2,3265.6,2.46975157]
[1738307271623,0.0306945,3265.9,3265.6,2.46975157]
[1738307271826,3.0926545,3265.9,3265.7,0.0075]
[1738307272022,0.0306945,3265.9,3265.7,0.015]
[1738307272269,3.06162,3266.3,3265.7,3.07712]
[1738307272470,0.03270044,3265.8,3265.7,3.07712]
[1738307272769,3.06162,3266.3,3265.7,3.93803816]
[1738307272983,0.03270044,3265.8,3265.7,0.015]
[1738307273143,3.06162,3266.3,3265.7,0.015]
[1738307273660,0.03270044,3266.2,3265.7,0.015]
[1738307274167,3.06184,3266.1,3265.7,0.015]
[1738307274369,0.03270044,3266.2,3265.7,0.015]
[1738307274370,3.06186,3266.0,3265.7,0.015]
[1738307274576,3.06194,3265.9,3265.7,0.015]
[1738307274870,3.09478818,3265.9,3265.7,0.015]
[1738307275224,3.09478818,3265.9,3265.7,1.65825157]
[1738307275425,0.03284818,3265.9,3265.7,1.65825157]
[1738307275655,3.06179,3266.1,3265.7,1.65825157]
[1738307275858,3.09473818,3266.0,3265.7,1.65825157]
[1738307276725,3.06194,3265.9,3265.7,1.65825157]
[1738307277393,0.03284818,3265.8,3265.7,1.65825157]
[1738307277529,3.09487818,3265.8,3265.7,1.64325157]
[1738307278367,0.03284818,3265.8,3265.7,1.64325157]
[1738307278591,0.03284818,3265.8,3265.7,1.65825157]
[1738307278788,3.06176,3266.1,3265.8,0.0075]
[1738307279084,3.85329,3266.3,3265.8,0.015]
[1738307279260,3.06159,3266.3,3265.8,0.015]
[1738307279443,3.06159,3266.3,3265.7,4.47077157]
[1738307279641,3.06155,3266.4,3265.7,4.47077157]
[1738307279854,3.06155,3266.4,3265.8,0.7648]
[1738307280241,3.06155,3266.4,3265.8,1.28835716]
[1738307280446,3.06155,3266.4,3265.9,3.06194]
[1738307280690,0.8133,3266.8,3265.9,3.06194]
[1738307280984,0.8133,3266.8,3266.1,3.06168]
[1738307281171,3.06104,3266.9,3266.3,3.0615]
[1738307281684,3.06104,3266.9,3266.4,0.015]
[1738307281862,3.06104,3266.9,3266.4,3.07646]
[1738307282057,0.8051,3267.1,3266.4,0.0075]
[1738307282261,3.0611,3266.8,3266.2,0.8038]
[1738307282583,0.03826275,3267.0,3266.3,3.07656]
[1738307282584,3.06094,3267.0,3266.3,3.07656]
[1738307283580,3.06102,3266.9,3266.3,3.07656]
[1738307283950,0.03298201,3266.8,3266.3,3.07656]
[1738307284146,0.03298201,3266.8,3266.5,0.015]
[1738307284745,0.03298201,3266.7,3266.5,0.015]
[1738307284896,0.03826155,3267.1,3266.7,0.0075]
[1738307285197,3.06109,3266.8,3266.4,0.8245]
[1738307285379,3.06109,3266.8,3266.1,3.82043]
[1738307285585,3.0612,3266.7,3266.2,0.015]
[1738307286089,3.06109,3266.8,3266.2,0.015]
[1738307286253,3.0613,3266.6,3266.2,0.015]
[1738307286652,3.06138,3266.5,3266.2,0.015]
[1738307287101,3.06148,3266.4,3266.2,0.0075]
[1738307287302,3.06176,3266.1,3265.6,0.7582]
[1738307287594,3.06158,3266.3,3265.6,3.7582]
[1738307287895,3.06158,3266.3,3265.7,0.015]
[1738307288201,3.06158,3266.3,3265.7,3.07708]
[1738307288917,3.06158,3266.3,3265.7,0.015]
[1738307289122,3.06205,3265.8,3265.4,35.0]
[1738307289679,3.06205,3265.8,3265.5,0.0075]
[1738307290222,3.06188,3266.0,3265.5,0.0075]
[1738307291122,3.09512205,3265.9,3265.5,0.0075]
[1738307292268,3.09512205,3265.9,3265.3,0.8273]
[1738307292719,3.09512205,3265.9,3265.4,35.0]
[1738307292894,3.06221,3265.7,3265.4,35.0]
[1738307293217,6.15713205,3265.9,3265.4,35.0]
[1738307293382,3.06204,3265.8,3265.4,35.0]
[1738307293578,3.0951282,3265.8,3265.4,35.0]
[1738307295421,3.06213,3265.7,3265.4,35.0]
[1738307295624,0.0330882,3265.8,3265.5,0.0075]
[1738307295924,0.0330882,3265.7,3265.5,0.0075]
[1738307296130,0.0330882,3265.7,3265.4,0.015]
[1738307296431,3.06211,3265.8,3265.6,35.0]
[1738307296634,3.06179,3266.1,3265.6,35.0]
[1738307296996,3.06201,3265.9,3265.6,35.0]
[1738307297400,3.06205,3265.8,3265.6,35.0]
[1738307298935,0.0330882,3265.7,3265.6,35.0]
[1738307299337,0.0330882,3265.7,3265.4,0.015]
[1738307299338,3.06205,3265.8,3265.4,0.015]
[1738307299853,0.0330882,3265.7,3265.5,35.0]
[1738307300208,3.06205,3265.8,3265.5,35.0]
[1738307300641,3.0952182,3265.7,3265.5,35.0]
[1738307300943,3.06205,3265.8,3265.5,35.0]
[1738307301311,0.0330882,3265.7,3265.5,35.0]
[1738307301715,3.06205,3265.8,3265.5,35.0]
[1738307302141,0.0330882,3265.7,3265.5,35.0]
[1738307302642,3.06186,3266.0,3265.5,35.0]
[1738307302835,3.062,3265.9,3265.5,35.0]
[1738307303217,0.03288973,3265.8,3265.5,35.0]
[1738307304848,6.12434,3265.7,3265.3,0.8273]
[1738307305019,3.06213,3265.7,3265.3,0.8273]
[1738307305218,0.03288973,3265.6,3265.3,0.8273]
[1738307305944,3.06213,3265.7,3265.3,0.8273]
[1738307306152,3.06198,3265.9,3265.3,0.8273]
[1738307306450,0.03288973,3265.6,3265.4,35.0]
[1738307306652,3.06206,3265.8,3265.4,35.0]
[1738307306946,0.03288973,3265.7,3265.4,35.0]
[1738307307347,3.06198,3265.9,3265.5,0.0075]
[1738307308052,0.03288973,3265.8,3265.7,3.07712]
[1738307308547,3.06159,3266.3,3265.8,0.0075]
[1738307308754,3.06159,3266.3,3265.9,35.0]
[1738307309050,3.06179,3266.1,3265.8,0.0075]
[1738307309423,0.03275585,3266.0,3265.8,35.0075]
[1738307309822,3.06213,3265.7,3265.3,0.7692]
[1738307310244,0.03283895,3265.6,3265.4,0.0075]
[1738307310806,3.06194,3265.9,3265.4,0.0075]
[1738307311232,3.09489895,3265.8,3265.4,0.0075]
[1738307311964,3.06206,3265.8,3265.4,0.0075]
[1738307312467,0.03281124,3265.7,3265.4,0.0075]
[1738307312619,3.06206,3265.8,3265.5,35.0]
[1738307312965,0.03281124,3265.7,3265.5,35.0]
[1738307313260,3.06206,3265.8,3265.5,35.0]
[1738307313462,0.03281124,3265.7,3265.5,35.0]
[1738307313764,3.06194,3265.9,3265.5,35.0]
[1738307314137,0.03281124,3265.8,3265.5,35.0]
[1738307314723,0.03281124,3265.8,3265.6,0.0075]
[1738307315024,3.06194,3265.9,3265.6,0.0075]
[1738307315223,0.03281124,3265.8,3265.5,3.06976]
[1738307315527,3.87338,3266.3,3265.8,0.0075]
[1738307315726,3.87338,3266.3,3265.8,0.7814]
[1738307316455,3.06158,3266.3,3265.8,0.7814]
[1738307316838,3.06166,3266.2,3265.8,0.7814]
[1738307317035,3.06183,3266.1,3265.5,3.753139]
[1738307317237,3.06195,3265.9,3265.4,0.7814]
[1738307317668,3.06195,3265.9,3265.6,0.0075]
[1738307317961,0.8065,3266.0,3265.6,0.0075]
[1738307318171,3.06186,3266.0,3265.6,0.0075]
[1738307319961,0.7747,3266.2,3265.6,0.0075]
[1738307320165,3.83643,3266.2,3265.6,2.90778514]
[1738307320663,3.06173,3266.2,3265.6,2.90778514]
[1738307320866,3.06177,3266.1,3265.6,0.0075]
[1738307321062,3.06186,3266.0,3265.7,35.0]
[1738307321228,3.06186,3266.0,3265.6,0.0075]
[1738307321429,0.03275122,3265.9,3265.5,0.0075]
[1738307321628,0.03275122,3265.9,3265.6,35.0]
[1738307321856,3.06186,3266.0,3265.5,0.0075]
[1738307322028,0.03275122,3265.9,3265.5,0.0075]
[1738307322230,3.06205,3265.8,3265.4,0.7739]
[1738307322445,3.06215,3265.7,3265.3,35.0]
[1738307322642,3.06215,3265.7,3265.4,0.0075]
[1738307323664,0.8163,3265.8,3265.4,0.0075]
[1738307324273,3.06203,3265.9,3265.4,0.0075]
[1738307325673,0.03275122,3265.8,3265.4,0.0075]
[1738307325837,0.03275122,3265.8,3265.5,35.0]
[1738307326048,3.87878,3266.1,3265.6,0.7902]
[1738307326251,0.03273736,3266.0,3265.6,0.7902]
[1738307326879,0.03273736,3266.0,3265.7,35.0]
[1738307327039,3.06168,3266.2,3265.7,35.0]
[1738307327573,0.03273736,3266.1,3265.7,35.0]
[1738307327740,3.13278126,3266.1,3265.6,0.7902]
[1738307328144,3.09450736,3266.1,3265.6,0.7902]
[1738307329389,3.06199,3265.9,3265.3,3.84006]
[1738307329746,3.06199,3265.9,3265.4,0.015]
[1738307329987,0.03273736,3265.8,3265.4,35.015]
[1738307330451,0.78773736,3265.8,3265.4,0.0075]
[1738307330786,0.30947274,3265.7,3265.1,3.06266]
[1738307331078,0.755,3265.8,3265.2,0.015]
[1738307331283,3.86382,3266.3,3265.7,3.06212]
[1738307331584,3.13269001,3266.2,3265.6,0.0075]
[1738307331785,3.09441736,3266.2,3265.6,0.0075]
[1738307331971,3.06168,3266.2,3265.6,0.0075]
[1738307332308,0.03273736,3266.1,3265.7,3.06957]
[1738307332440,0.8134,3266.5,3265.9,0.0075]
[1738307332643,0.03269119,3266.4,3265.9,3.06935]
[1738307333777,0.03269119,3266.4,3266.1,0.0075]
[1738307333953,0.03269119,3266.4,3266.2,0.0075]
[1738307334140,3.06127,3266.7,3266.2,0.0075]
[1738307334141,3.06127,3266.7,3266.3,0.0075]
[1738307334544,3.09953678,3266.7,3266.3,0.0075]
[1738307335888,3.06127,3266.7,3266.3,0.0075]
[1738307336765,3.06127,3266.7,3266.1,0.015]
[1738307337387,3.06127,3266.7,3266.1,3.07674]
[1738307337587,0.7917,3266.8,3266.3,0.0075]
[1738307337788,0.7917,3266.8,3266.3,0.015]
[1738307338194,0.7917,3266.8,3266.3,3.07656]
[1738307338580,0.7917,3266.8,3266.3,0.015]
[1738307340218,3.8528,3266.8,3266.3,0.015]
[1738307341618,3.06122,3266.7,3266.0,3.89302]
[1738307341786,3.06122,3266.7,3266.1,0.015]
[1738307342188,3.06158,3266.3,3266.0,0.8312]
[1738307342528,0.80780974,3266.2,3265.7,3.015]
[1738307342821,0.80780974,3266.2,3265.7,3.07705]
[1738307343316,0.7748,3266.2,3265.7,3.07705]
[1738307344031,3.06183,3266.1,3265.7,0.0075]
[1738307344235,3.06183,3266.1,3265.6,3.0]
[1738307344728,3.06183,3266.1,3265.5,38.06225]
[1738307345235,0.72809567,3266.1,3265.5,35.0]
[1738307345390,3.06201,3265.9,3265.5,35.0]
[1738307345723,0.03293588,3265.8,3265.5,35.0]
[1738307345913,3.09496588,3265.8,3265.5,35.0]
[1738307346102,3.09496588,3265.8,3265.3,3.015]
[1738307346827,0.03293588,3265.8,3265.5,0.0075]
[1738307348324,3.13327233,3265.8,3265.4,35.0]
[1738307348498,3.81861,3265.7,3265.4,35.0]
[1738307348704,0.03276045,3265.6,3265.4,35.0]